No. of Trans.,Dept. Family,Entity Name,Cert Date,Supplier Name,Reference,Gross Amt,Type of Expenditure - Subjective Codes ,Group/Department
1,DCMS,EH,05/11/2013,Carisbrooke Castle Museum Trust,40048079,"26,417.00",Income Sharing Agreement,National Collections-Historic Properties Department
2,DCMS,EH,04/11/2013,William Anelay Limited,40047630,"112,554.00",Works for Heritage Buildings,Heritage Protection & Planning-Nat. Planning & Conservation
3,DCMS,EH,05/11/2013,William Anelay Limited,40047942,"70,654.80",Fees for Professional Advice,Heritage Protection & Planning-Nat. Planning & Conservation
4,DCMS,EH,27/11/2013,William Anelay Limited,40050133,"142,824.00",Works for Heritage Buildings,Heritage Protection & Planning-Nat. Planning & Conservation
5,DCMS,EH,14/11/2013,Wise Worksafe,40048172,"36,000.00",Welfare Services,National Collections-Historic Properties Department
6,DCMS,EH,25/11/2013,Sykes and Son Limited,40049695,"36,432.00",Planned Maintenance,Resources-Office Estate
7,DCMS,EH,20/11/2013,Gillards Worldwide,40049270,"58,327.89",Storage & Warehousing,National Collections-Historic Properties Department
8,DCMS,EH,01/11/2013,Historic Property Restoration Ltd,40047588,"7,592.57",Annual Cyclical Works-Building,National Collections-Property Maintenance Programme
9,DCMS,EH,01/11/2013,Historic Property Restoration Ltd,40047588,"3,738.88",Annual Cyclical Works-Building,National Collections-Property Maintenance Programme
10,DCMS,EH,01/11/2013,Historic Property Restoration Ltd,40047588,"16,196.46",Annual Cyclical Work M & E,National Collections-Property Maintenance Programme
11,DCMS,EH,01/11/2013,Historic Property Restoration Ltd,40047588,"1,910.51",Leased Accomodation Maint,National Collections-Property Maintenance Programme
12,DCMS,EH,01/11/2013,Historic Property Restoration Ltd,40047588,212.1,Annual Cyclical Work M & E,National Collections-Property Maintenance Programme
13,DCMS,EH,01/11/2013,Historic Property Restoration Ltd,40047589,"6,631.98",Responsive Maint Building,National Collections-Property Maintenance Programme
14,DCMS,EH,01/11/2013,Historic Property Restoration Ltd,40047589,"1,446.25",Responsive Maint Building,National Collections-Property Maintenance Programme
15,DCMS,EH,01/11/2013,Historic Property Restoration Ltd,40047589,379.79,Responsive Repairs M & E,National Collections-Property Maintenance Programme
16,DCMS,EH,01/11/2013,Historic Property Restoration Ltd,40047589,"1,945.45",Leased Accomodation Maint,National Collections-Property Maintenance Programme
17,DCMS,EH,01/11/2013,Historic Property Restoration Ltd,40047589,"16,789.07",Planned Maintenance,National Collections-Property Maintenance Programme
18,DCMS,EH,01/11/2013,Historic Property Restoration Ltd,40047589,"8,496.05",Responsive Repairs M & E,National Collections-Property Maintenance Programme
19,DCMS,EH,21/11/2013,Historic Property Restoration Ltd,40048674,"26,785.42",Annual Cyclical Works-Building,National Collections-Property Maintenance Programme
20,DCMS,EH,25/11/2013,Historic Property Restoration Ltd,40049101,"52,353.38",Works for Heritage Buildings,National Collections-Major Conservation Projects
21,DCMS,EH,28/11/2013,Historic Property Restoration Ltd,40049981,"3,872.93",Annual Cyclical Works-Building,National Collections-Property Maintenance Programme
22,DCMS,EH,28/11/2013,Historic Property Restoration Ltd,40049981,"38,817.85",Annual Cyclical Work M & E,National Collections-Property Maintenance Programme
23,DCMS,EH,28/11/2013,Historic Property Restoration Ltd,40049981,576.88,Annual Cyclical Work M & E,National Collections-Property Maintenance Programme
24,DCMS,EH,28/11/2013,Historic Property Restoration Ltd,40049981,"20,655.30",Annual Cyclical Works-Building,National Collections-Property Maintenance Programme
25,DCMS,EH,29/11/2013,Enterprise Rent A Car UK Ltd,20053228,-14.4,Car Hire,National Collections-Historic Properties Department
26,DCMS,EH,29/11/2013,Enterprise Rent A Car UK Ltd,20053228,"45,572.55",Car Hire,Resources-Corporate
27,DCMS,EH,29/11/2013,Enterprise Rent A Car UK Ltd,20053228,-10.02,Car Hire,National Advice & Information-Government Advice Department
28,DCMS,EH,20/11/2013,Atkins Limited,40048326,"15,000.00",Hist Environ Prog Projects Gra,Heritage Protection & Planning-Heritage Protection
29,DCMS,EH,20/11/2013,Atkins Limited,40048326,"12,000.00",Hist Environ Prog Projects Gra,Heritage Protection & Planning-Heritage Protection
30,DCMS,EH,20/11/2013,Illustrated London News Ltd,40049073,"40,056.00",Print and Production,National Collections-Marketing
31,DCMS,EH,20/11/2013,Illustrated London News Ltd,40049073,"8,144.40",Marketing Fulfilment,National Collections-Marketing
32,DCMS,EH,20/11/2013,Illustrated London News Ltd,40049073,"4,417.20",Consumer Photography,National Collections-Marketing
33,DCMS,EH,20/11/2013,Illustrated London News Ltd,40049073,"19,110.00",Digital,National Collections-Marketing
34,DCMS,EH,20/11/2013,Illustrated London News Ltd,40049073,"44,102.40",Marketing Creative,National Collections-Marketing
35,DCMS,EH,20/11/2013,Illustrated London News Ltd,40049074,"1,378.80",Consumer Photography,National Collections-Marketing
36,DCMS,EH,20/11/2013,Illustrated London News Ltd,40049074,"16,350.00",Marketing Creative,National Collections-Marketing
37,DCMS,EH,20/11/2013,Illustrated London News Ltd,40049074,"30,390.00",Print and Production,National Collections-Marketing
38,DCMS,EH,20/11/2013,Illustrated London News Ltd,40049074,"1,250.40",Marketing Fulfilment,National Collections-Marketing
39,DCMS,EH,25/11/2013,Robert Woodhead Ltd,40049047,"64,682.52",WIP Operational Building Works,National Collections-Capital Investment Programme
40,DCMS,EH,12/11/2013,Fairhurst Ward Abbotts Ltd,40048100,"82,473.55",WIP Operational Building Works,National Collections-Capital Investment Programme
41,DCMS,EH,05/11/2013,Mountjoy Ltd,40046266,"35,044.80",WIP Operational Building Works,National Collections-Capital Investment Programme
42,DCMS,EH,25/11/2013,Mountjoy Ltd,40048887,"86,141.30",WIP Operational Building Works,National Collections-Capital Investment Programme
43,DCMS,EH,06/11/2013,Capita Secure Information Solutions Ltd,40047769,"62,350.76",ITFM,Resources-IMT
44,DCMS,EH,20/11/2013,Capita Secure Information Solutions Ltd,40048025,"60,764.40",WIP Asset Purch Over 10k,Resources-IMT
45,DCMS,EH,20/11/2013,Capita Secure Information Solutions Ltd,40048025,"31,482.00",WIP Asset Purch Over 10k,Resources-IMT
46,DCMS,EH,06/11/2013,Capita Secure Information Solutions Ltd,40048027,"31,128.94",Computer Equipment <10k,Resources-IMT
47,DCMS,EH,29/11/2013,Capita Secure Information Solutions Ltd,40048250,"246,784.62",ITFM,Resources-IMT
48,DCMS,EH,08/11/2013,Leach Colour,40046351,"27,495.60","WIP Exhib, Displays & Fit Out",National Collections-Capital Investment Programme
49,DCMS,EH,15/11/2013,Vinci Construction UK Ltd,40048919,"11,947.20",Works for Heritage Buildings,National Collections-Capital Investment Programme
50,DCMS,EH,15/11/2013,Vinci Construction UK Ltd,40048919,"209,342.40",WIP Operational Building Works,National Collections-Capital Investment Programme
51,DCMS,EH,15/11/2013,Vinci Construction UK Ltd,40048919,"413,073.60",WIP Professional Works Advice,National Collections-Capital Investment Programme
52,DCMS,EH,15/11/2013,Vinci Construction UK Ltd,40048919,"26,130.00",Works for Heritage Buildings,National Collections-Capital Investment Programme
53,DCMS,EH,15/11/2013,Vinci Construction UK Ltd,40048919,"3,768.00",Works for Heritage Buildings,National Collections-Capital Investment Programme
54,DCMS,EH,15/11/2013,Vinci Construction UK Ltd,40048919,"112,155.60",WIP Operational Building Works,National Collections-Capital Investment Programme
55,DCMS,EH,15/11/2013,Vinci Construction UK Ltd,40048919,"58,245.60",WIP Operational Building Works,National Collections-Capital Investment Programme
56,DCMS,EH,15/11/2013,Vinci Construction UK Ltd,40048919,"17,678.40",WIP Operational Building Works,National Collections-Capital Investment Programme
57,DCMS,EH,15/11/2013,Vinci Construction UK Ltd,40048919,"59,888.40",WIP Operational Building Works,National Collections-Capital Investment Programme
58,DCMS,EH,15/11/2013,Vinci Construction UK Ltd,40048919,"7,513.20",WIP Operational Building Works,National Collections-Capital Investment Programme
59,DCMS,EH,15/11/2013,Vinci Construction UK Ltd,40048919,"98,361.60",WIP Operational Building Works,National Collections-Capital Investment Programme
60,DCMS,EH,14/11/2013,Devlin Decorators Ltd,40048930,"64,996.80",Planned Maintenance,National Collections-Property Maintenance Programme
61,DCMS,EH,29/11/2013,ACME Studios,40049611,"40,920.00","WIP Exhib, Displays & Fit Out",National Collections-Major Conservation Projects
62,DCMS,EH,29/11/2013,ACME Studios,40049611,"19,080.00","WIP Exhib, Displays & Fit Out",National Collections-Major Conservation Projects
63,DCMS,EH,29/11/2013,Security Services Group,40049634,"27,323.42",WIP Operational Building Works,National Collections-Major Conservation Projects
64,DCMS,EH,15/11/2013,STM Security Group  UK Ltd,40048282,"29,943.69",Security Guard & Monitor Stati,National Collections-Property Maintenance Programme
65,DCMS,EH,05/11/2013,Studio MB Limited,40047492,"39,234.00","WIP Exhib, Displays & Fit Out",National Collections-Capital Investment Programme
66,DCMS,EH,18/11/2013,Bond Dickinson LLP,20053097,"30,000.00",Operational Heritage Buildings,Resources-Office Estate
67,DCMS,EH,25/11/2013,William Birch & Sons Ltd,40048854,"45,457.08",WIP Operational Building Works,National Collections-Capital Investment Programme
68,DCMS,EH,25/11/2013,Croft Building and Conservation Ltd,40049199,"47,184.51",Works for Heritage Buildings,National Collections-Major Conservation Projects
69,DCMS,EH,26/11/2013,Micros Systems UK Limited,40049189,"44,074.26",Software Maintenance,Resources-IMT
70,DCMS,EH,25/11/2013,EDF Energy,20053172,"28,013.16",Electricity,Resources-Corporate
71,DCMS,EH,18/11/2013,Hadrian's Wall Trust,90700172,"46,783.00",GRANTS PAYABLE - OTHER GRANTS,Heritage Protection & Planning-Nat. Planning & Conservation
72,DCMS,EH,06/11/2013,University College London,81002661,"235,100.00",ENABLING PROGRAMMES - ENABLING PROGRAMMES,Heritage Protection & Planning-Heritage Protection
73,DCMS,EH,22/11/2013,Aston Parish Church,82002277,"76,000.00",GRANTS PAYABLE - PLACES OF WORSHIP,Heritage Protection & Planning-Nat. Planning & Conservation
74,DCMS,EH,11/11/2013,PCC Brompton Ralph 1 A/C,82002233,"27,250.00",GRANTS PAYABLE - PLACES OF WORSHIP,Heritage Protection & Planning-Nat. Planning & Conservation
75,DCMS,EH,01/11/2013,City Centre Parish Canterbury PCC,82002220,"45,600.00",GRANTS PAYABLE - PLACES OF WORSHIP,Heritage Protection & Planning-Nat. Planning & Conservation
76,DCMS,EH,18/11/2013,St George Doncaster PCC,82002257,"110,000.00",GRANTS PAYABLE - PLACES OF WORSHIP,Heritage Protection & Planning-Nat. Planning & Conservation
77,DCMS,EH,26/11/2013,Cullompton Walronds Preserv Trust,82002292,"64,350.00",GRANTS PAYABLE - HISTORIC BUILDINGS,Heritage Protection & Planning-Nat. Planning & Conservation
78,DCMS,EH,11/11/2013,The General Cemetery Co,82002225,"156,000.00",GRANTS PAYABLE - HISTORIC BUILDINGS,Heritage Protection & Planning-Nat. Planning & Conservation
79,DCMS,EH,11/11/2013,Holdgate Parochial Church Council,82002228,"52,000.00",GRANTS PAYABLE - PLACES OF WORSHIP,Heritage Protection & Planning-Nat. Planning & Conservation
80,DCMS,EH,18/11/2013,"St Thomas the Apostle, Huddersfield PCC",82002254,"38,000.00",GRANTS PAYABLE - PLACES OF WORSHIP,Heritage Protection & Planning-Nat. Planning & Conservation
81,DCMS,EH,18/11/2013,"St Thomas the Apostle, Huddersfield PCC",82002255,"25,000.00",GRANTS PAYABLE - PLACES OF WORSHIP,Heritage Protection & Planning-Nat. Planning & Conservation
82,DCMS,EH,18/11/2013,"St Thomas the Apostle, Huddersfield PCC",82002256,"50,400.00",GRANTS PAYABLE - PLACES OF WORSHIP,Heritage Protection & Planning-Nat. Planning & Conservation
83,DCMS,EH,11/11/2013,St Margarets PCC,82002241,"29,000.00",GRANTS PAYABLE - PLACES OF WORSHIP,Heritage Protection & Planning-Nat. Planning & Conservation
84,DCMS,EH,11/11/2013,St Philip with St Stephen PCC,82002242,"71,600.00",GRANTS PAYABLE - PLACES OF WORSHIP,Heritage Protection & Planning-Nat. Planning & Conservation
85,DCMS,EH,19/11/2013,Winterton on Sea PCC,82002271,"48,000.00",GRANTS PAYABLE - PLACES OF WORSHIP,Heritage Protection & Planning-Nat. Planning & Conservation
86,DCMS,EH,19/11/2013,Winterton on Sea PCC,82002272,"35,200.00",GRANTS PAYABLE - PLACES OF WORSHIP,Heritage Protection & Planning-Nat. Planning & Conservation
87,DCMS,EH,11/11/2013,SS Ethelbert & Gertrude Ramsgate/Minster,82002229,"55,600.00",GRANTS PAYABLE - PLACES OF WORSHIP,Heritage Protection & Planning-Nat. Planning & Conservation
88,DCMS,EH,11/11/2013,PCC of Kingstone,82002237,"39,600.00",GRANTS PAYABLE - PLACES OF WORSHIP,Heritage Protection & Planning-Nat. Planning & Conservation
89,DCMS,EH,22/11/2013,St Andrews (Anglican/Methodist) Church,82002281,"29,998.00",GRANTS PAYABLE - PLACES OF WORSHIP,Heritage Protection & Planning-Nat. Planning & Conservation
90,DCMS,EH,01/11/2013,DHN Durham St Cuthbert,82002222,"37,800.00",GRANTS PAYABLE - PLACES OF WORSHIP,Heritage Protection & Planning-Nat. Planning & Conservation
91,DCMS,EH,01/11/2013,London Borough of Lewisham,82002221,"180,000.00",GRANTS PAYABLE - HISTORIC BUILDINGS,Heritage Protection & Planning-Nat. Planning & Conservation
92,DCMS,EH,11/11/2013,Aston Botterell Parochial Church Council,82002227,"30,400.00",GRANTS PAYABLE - PLACES OF WORSHIP,Heritage Protection & Planning-Nat. Planning & Conservation
93,DCMS,EH,22/11/2013,Litcham PCC,82002284,"30,322.00",GRANTS PAYABLE - PLACES OF WORSHIP,Heritage Protection & Planning-Nat. Planning & Conservation
94,DCMS,EH,29/11/2013,St Mary de Castro PCC,82002306,"58,750.00",GRANTS PAYABLE - PLACES OF WORSHIP,Heritage Protection & Planning-Nat. Planning & Conservation
95,DCMS,EH,11/11/2013,St Enoder PCC,82002232,"86,500.00",GRANTS PAYABLE - PLACES OF WORSHIP,Heritage Protection & Planning-Nat. Planning & Conservation
96,DCMS,EH,13/11/2013,PCC of South Tawton,82002246,"81,500.00",GRANTS PAYABLE - PLACES OF WORSHIP,Heritage Protection & Planning-Nat. Planning & Conservation
97,DCMS,EH,01/11/2013,PCC Mosterton,82002219,"27,500.00",GRANTS PAYABLE - PLACES OF WORSHIP,Heritage Protection & Planning-Nat. Planning & Conservation
98,DCMS,EH,11/11/2013,Kingsland Parochial Church Council,82002234,"26,000.00",GRANTS PAYABLE - PLACES OF WORSHIP,Heritage Protection & Planning-Nat. Planning & Conservation
99,DCMS,EH,22/11/2013,PCC of Gayton,82002288,"36,000.00",GRANTS PAYABLE - PLACES OF WORSHIP,Heritage Protection & Planning-Nat. Planning & Conservation
100,DCMS,EH,18/11/2013,St Michael's Church,82002258,"37,350.00",GRANTS PAYABLE - PLACES OF WORSHIP,Heritage Protection & Planning-Nat. Planning & Conservation
101,DCMS,EH,29/11/2013,Leavesden PCC,82002308,"46,000.00",GRANTS PAYABLE - PLACES OF WORSHIP,Heritage Protection & Planning-Nat. Planning & Conservation
102,DCMS,EH,18/11/2013,PCC of Hawes Church,82002260,"73,000.00",GRANTS PAYABLE - PLACES OF WORSHIP,Heritage Protection & Planning-Nat. Planning & Conservation
103,DCMS,EH,26/11/2013,St Stephens Parochial Church Council,82002296,"41,152.00",GRANTS PAYABLE - PLACES OF WORSHIP,Heritage Protection & Planning-Nat. Planning & Conservation
104,DCMS,EH,18/11/2013,St Bartholomew's District Church Council,82002262,"32,000.00",GRANTS PAYABLE - PLACES OF WORSHIP,Heritage Protection & Planning-Nat. Planning & Conservation
105,DCMS,EH,11/11/2013,Hilton Hall Limited,82002239,"56,071.00",GRANTS PAYABLE - HISTORIC BUILDINGS,Heritage Protection & Planning-Nat. Planning & Conservation
106,DCMS,EH,22/11/2013,UK Historic Building Preservation Trust,82002291,"164,218.00",GRANTS PAYABLE - HISTORIC BUILDINGS,Heritage Protection & Planning-Nat. Planning & Conservation
107,DCMS,EH,11/11/2013,"Abbey Farm, Pentney Abbey",82002243,"62,600.00",GRANTS PAYABLE - HISTORIC BUILDINGS,Heritage Protection & Planning-Nat. Planning & Conservation
108,DCMS,EH,11/11/2013,Forest of Dean Bdgs Preservation Trust,82002240,"39,500.00",GRANTS PAYABLE - HISTORIC BUILDINGS,Heritage Protection & Planning-Nat. Planning & Conservation
109,DCMS,EH,18/11/2013,"St Andrew's Church, Roker",82002266,"64,500.00",GRANTS PAYABLE - PLACES OF WORSHIP,Heritage Protection & Planning-Nat. Planning & Conservation
110,DCMS,EH,18/11/2013,Lyme Bay Cider Company Ltd,1082392,"66,485.42",,National Collections-Historic Properties Department
111,DCMS,EH,25/11/2013,Lyme Bay Cider Company Ltd,1082436,"49,885.34",,National Collections-Historic Properties Department
